fUST/lending_fUST_20250717
["ID","MTS","AMOUNT","RATE_DAILY","PERIOD"]
[372557247,1752682276129,-460.0,0.00021095,2]
[372557248,1752682276138,-460.0,0.00021095,2]
[372557249,1752682276148,-460.0,0.00021095,2]
[372557250,1752682276158,-460.0,0.00021095,2]
[372557251,1752682276167,-569.95,0.00021095,2]
[372557252,1752682276178,-460.0,0.00021095,2]
[372557253,1752682276188,-460.0,0.00021095,2]
[372557254,1752682276198,-460.0,0.00021095,2]
[372557255,1752682276208,-460.0,0.00021095,2]
[372557256,1752682276218,-712.27,0.00021095,2]
[372557257,1752682276228,-2013.52,0.00021095,2]
[372557258,1752682276238,-952.9,0.00021095,2]
[372557259,1752682276248,-3683.85,0.00021095,2]
[372557260,1752682276258,-460.0,0.00021095,2]
[372557261,1752682276268,-1497.64,0.00021095,2]
[372557262,1752682276279,-460.0,0.00021095,2]
[372557263,1752682276293,-458.26675044,0.00021095,2]
[372557264,1752682276303,-460.0,0.00021095,2]
[372557265,1752682276313,-619.97,0.00021095,2]
[372557266,1752682276323,-585.24,0.00021095,2]
[372557267,1752682276333,-777.46,0.00021095,2]
[372557268,1752682276347,-460.0,0.00021095,2]
[372557269,1752682276357,-386.14832795,0.00021095,2]
[372557270,1752682276367,-1172.05,0.00021095,2]
[372557271,1752682276376,-1533.49,0.00021095,2]
[372557272,1752682276387,-460.0,0.00021095,2]
[372557273,1752682276398,-9374.46,0.00021095,2]
[372557274,1752682276407,-3198.06,0.00021095,2]
[372557275,1752682276419,-460.0,0.00021095,2]
[372557276,1752682276429,-460.0,0.00021095,2]
[372557277,1752682276439,-512.38,0.00021095,2]
[372557278,1752682276449,-460.0,0.00021095,2]
[372557279,1752682276458,-605.37,0.00021095,2]
[372557280,1752682276468,-460.0,0.00021095,2]
[372557281,1752682276479,-460.0,0.00021095,2]
[372557282,1752682276489,-460.0,0.00021095,2]
[372557283,1752682276498,-460.0,0.00021095,2]
[372557284,1752682276509,-460.0,0.00021095,2]
[372557285,1752682276520,-460.0,0.00021095,2]
[372557286,1752682276531,-838.16,0.00021095,2]
[372557287,1752682276542,-2434.41,0.00021095,2]
[372557288,1752682276552,-5102.38,0.00021095,2]
[372557289,1752682276562,-602.13,0.00021095,2]
[372557290,1752682276573,-460.0,0.00021095,2]
[372557291,1752682276583,-460.0,0.00021095,2]
[372557292,1752682276593,-460.0,0.00021095,2]
[372557293,1752682276603,-460.0,0.00021095,2]
[372557294,1752682276615,-460.0,0.00021095,2]
[372557295,1752682276625,-1404.59,0.00021095,2]
[372557296,1752682276636,-460.0,0.00021095,2]
[372557297,1752682276646,-460.0,0.00021095,2]
[372557298,1752682276656,-460.0,0.00021095,2]
[372557299,1752682276666,-460.0,0.00021095,2]
[372557300,1752682276676,-460.0,0.00021095,2]
[372557301,1752682276686,-499.74,0.00021095,2]
[372557302,1752682276696,-1737.0,0.00021095,2]
[372557303,1752682276705,-8485.34,0.00021095,2]
[372557304,1752682276716,-460.0,0.00021095,2]
[372557305,1752682276726,-460.0,0.00021095,2]
[372557306,1752682276735,-1068.7,0.00021095,2]
[372557307,1752682276746,-460.0,0.00021095,2]
[372557308,1752682276755,-460.0,0.00021095,2]
[372557309,1752682276765,-1077.39,0.00021095,2]
[372557310,1752682276774,-460.0,0.00021095,2]
[372557311,1752682276785,-461.69,0.00021095,2]
[372557312,1752682276794,-715.65,0.00021095,2]
[372557313,1752682276804,-957.64,0.00021095,2]
[372557314,1752682276813,-460.0,0.00021095,2]
[372557315,1752682276822,-460.0,0.00021095,2]
[372557316,1752682276832,-460.0,0.00021095,2]
[372557317,1752682276842,-460.0,0.00021095,2]
[372557318,1752682276979,-460.0,0.00021095,2]
[372557319,1752682276989,-460.0,0.00021095,2]
[372557320,1752682276999,-1115.86,0.00021095,2]
[372557321,1752682277009,-523.69,0.00021095,2]
[372557322,1752682277019,-4066.52,0.00021095,2]
[372557323,1752682277028,-619.31,0.00021095,2]
[372557324,1752682277040,-574.27,0.00021095,2]
[372557325,1752682277049,-460.0,0.00021095,2]
[372557326,1752682277060,-408.95320726,0.00021095,2]
[372557327,1752682277070,-1328.1,0.00021095,2]
[372557328,1752682277079,-918.72,0.00021095,2]
[372557329,1752682277090,-460.0,0.00021095,2]
[372557330,1752682277100,-2299.85,0.00021095,2]
[372557331,1752682277111,-773.05,0.00021095,2]
[372557332,1752682277120,-4580.98,0.00021095,2]
[372557333,1752682277130,-460.0,0.00021095,2]
[372557334,1752682277140,-755.59,0.00021095,2]
[372557335,1752682277150,-913.1,0.00021095,2]
[372557336,1752682277160,-460.0,0.00021095,2]
[372557337,1752682277170,-466.0188685,0.00021095,2]
[372557338,1752682277180,-810.6,0.00021095,2]
[372557339,1752682277190,-985.68,0.00021095,2]
[372557340,1752682277200,-460.0,0.00021095,2]
[372557341,1752682277210,-1927.53,0.00021095,2]
[372557342,1752682277219,-460.0,0.00021095,2]
[372557343,1752682277230,-477.77,0.00021095,2]
[372557344,1752682277239,-2098.91,0.00021095,2]
[372557345,1752682277249,-460.0,0.00021095,2]
[372557346,1752682277259,-850.69,0.00021095,2]
[372557347,1752682277269,-460.0,0.00021095,2]
[372557348,1752682277278,-3246.09,0.00021095,2]
[372557349,1752682277292,-460.0,0.00021095,2]
[372557350,1752682277302,-460.0,0.00021095,2]
[372557351,1752682277312,-496.68,0.00021095,2]
[372557352,1752682277322,-496.33,0.00021095,2]
[372557353,1752682277331,-460.0,0.00021095,2]
[372557354,1752682277341,-4054.42,0.00021095,2]
[372557355,1752682277354,-1129.6,0.00021095,2]
[372557356,1752682277363,-460.0,0.00021095,2]
[372557357,1752682277374,-460.0,0.00021095,2]
[372557358,1752682277383,-460.0,0.00021095,2]
[372557359,1752682277393,-460.0,0.00021095,2]
[372557360,1752682277402,-1001.62020953,0.00021116,2]
[372557361,1752682277411,-2000.0,0.00021116,2]
[372557362,1752682277422,-2000.0,0.00021116,2]
[372557363,1752682277432,-1483.4490543,0.00021116,2]
[372557364,1752682277442,-2000.0,0.00021116,2]
[372557365,1752682277451,-2018.74580362,0.00021116,2]
[372557366,1752682277461,-2000.0,0.00021116,2]
[372557367,1752682277471,-500.0,0.00021116,2]
[372557368,1752682277480,-500.0,0.00021212,2]
[372557369,1752682277490,-500.0,0.00021235,2]
[372557370,1752682277500,-232.87420986,0.00021269,2]
[372557371,1752682277510,-160.0,0.00021293,3]
[372557372,1752682277520,-7562.15499518,0.00021314,5]
[372557373,1752682277530,-5000.0,0.00021347,2]
[372557374,1752682277542,-460.0,0.00021369,2]
[372557375,1752682277552,-460.0,0.00021369,2]
[372557376,1752682277562,-460.0,0.00021369,2]
[372557377,1752682277572,-555.83,0.00021369,2]
[372557378,1752682277581,-460.0,0.00021369,2]
[372557379,1752682277591,-460.0,0.00021369,2]
[372557380,1752682277601,-460.0,0.00021369,2]
[372557381,1752682277611,-460.0,0.00021369,2]
[372557382,1752682277621,-774.56,0.00021369,2]
[372557383,1752682277631,-460.0,0.00021369,2]
[372557384,1752682277640,-537.73,0.00021369,2]
[372557385,1752682277650,-460.0,0.00021369,2]
[372557386,1752682277660,-460.0,0.00021369,2]
[372557387,1752682277670,-405.78408172,0.00021369,2]
[372557388,1752682277680,-460.0,0.00021369,2]
[372557389,1752682277690,-314.82261584,0.00021369,2]
[372557390,1752682277699,-460.0,0.00021369,2]
[372557391,1752682277708,-508.47,0.00021369,2]
[372557392,1752682277718,-460.0,0.00021369,2]
[372557393,1752682277728,-462.87,0.00021369,2]
[372557394,1752682277737,-460.0,0.00021369,2]
[372557395,1752682277747,-481.90635901,0.00021369,2]
[372557396,1752682277757,-460.0,0.00021369,2]
[372557397,1752682277766,-460.0,0.00021369,2]
[372557398,1752682277776,-460.0,0.00021369,2]
[372557399,1752682277790,-460.0,0.00021369,2]
[372557400,1752682277799,-512.75,0.00021369,2]
[372557401,1752682277810,-460.0,0.00021369,2]
[372557402,1752682277820,-800.36,0.00021369,2]
[372557403,1752682277830,-460.0,0.00021369,2]
[372557404,1752682277840,-460.0,0.00021369,2]
[372557405,1752682277850,-460.0,0.00021369,2]
[372557406,1752682277860,-705.11,0.00021369,2]
[372557407,1752682277869,-895.39,0.00021369,2]
[372557408,1752682277879,-460.0,0.00021369,2]
[372557409,1752682277890,-460.0,0.00021369,2]
[372557410,1752682277900,-749.62,0.00021369,2]
[372557411,1752682277910,-460.0,0.00021369,2]
[372557412,1752682277920,-386.88732317,0.00021369,2]
[372557413,1752682277930,-460.0,0.00021369,2]
[372557414,1752682277940,-460.0,0.00021369,2]
[372557415,1752682277950,-460.0,0.00021369,2]
[372557416,1752682277960,-460.0,0.00021369,2]
[372557417,1752682277970,-1006.97,0.00021369,2]
[372557418,1752682277979,-460.0,0.00021369,2]
[372557419,1752682277988,-300.68,0.00021369,2]
[372557420,1752682277998,-582.75,0.00021369,2]
[372557421,1752682278008,-460.0,0.00021369,2]
[372557422,1752682278017,-342.22579245,0.00021369,2]
[372557423,1752682278027,-1201.4,0.00021369,2]
[372557424,1752682278043,-460.0,0.00021369,2]
[372557425,1752682278052,-460.0,0.00021369,2]
[372557426,1752682278062,-1474.43,0.00021369,2]
[372557427,1752682278072,-828.54,0.00021369,2]
[372557428,1752682278081,-460.0,0.00021369,2]
[372557429,1752682278091,-460.0,0.00021369,2]
[372557430,1752682278101,-460.0,0.00021369,2]
[372557431,1752682278111,-460.0,0.00021369,2]
[372557432,1752682278122,-507.41,0.00021369,2]
[372557433,1752682278132,-632.11,0.00021369,2]
[372557434,1752682278142,-460.0,0.00021369,2]
[372557435,1752682278152,-460.0,0.00021369,2]
[372557436,1752682278162,-1356.45,0.00021369,2]
[372557437,1752682278172,-460.0,0.00021369,2]
[372557438,1752682278182,-761.93,0.00021369,2]
[372557439,1752682278192,-460.0,0.00021369,2]
[372557440,1752682278202,-460.0,0.00021369,2]
[372557441,1752682278213,-600.35,0.00021369,2]
[372557442,1752682278223,-949.14,0.00021369,2]
[372557443,1752682278234,-624.22,0.00021369,2]
[372557444,1752682278244,-1370.55,0.00021369,2]
[372557445,1752682278254,-1009.28,0.00021369,2]
[372557446,1752682278264,-460.0,0.00021369,2]
[372557447,1752682278274,-664.71,0.00021369,2]
[372557448,1752682278288,-460.0,0.00021369,2]
[372557449,1752682278298,-175.58547255,0.00021369,2]
[372557450,1752682278308,-460.0,0.00021369,2]
[372557451,1752682278319,-176.63114338,0.00021369,2]
[372557452,1752682278329,-460.0,0.00021369,2]
[372557453,1752682278340,-569.95,0.00021369,2]
[372557454,1752682278354,-460.0,0.00021369,2]
[372557455,1752682278365,-460.0,0.00021369,2]
[372557456,1752682278376,-460.0,0.00021369,2]
[372557457,1752682278387,-460.0,0.00021369,2]
[372557458,1752682278397,-712.27,0.00021369,2]
[372557459,1752682278408,-2013.52,0.00021369,2]
[372557460,1752682278418,-952.9,0.00021369,2]
[372557461,1752682278429,-3683.85,0.00021369,2]
[372557462,1752682278440,-460.0,0.00021369,2]
[372557463,1752682278450,-1497.64,0.00021369,2]
[372557464,1752682278460,-460.0,0.00021369,2]
[372557465,1752682278470,-460.0,0.00021369,2]
[372557466,1752682278480,-619.97,0.00021369,2]
[372557467,1752682278490,-585.24,0.00021369,2]
[372557468,1752682278500,-777.46,0.00021369,2]
[372557469,1752682278510,-460.0,0.00021369,2]
[372557470,1752682278520,-1172.05,0.00021369,2]
[372557471,1752682278539,-1533.49,0.00021369,2]
[372557472,1752682278549,-460.0,0.00021369,2]
[372557473,1752682278560,-460.0,0.00021369,2]
[372557474,1752682278571,-9374.46,0.00021369,2]
[372557475,1752682278581,-3198.06,0.00021369,2]
[372557476,1752682278592,-460.0,0.00021369,2]
[372557477,1752682278602,-460.0,0.00021369,2]
[372557478,1752682278613,-512.38,0.00021369,2]
[372557479,1752682278623,-605.37,0.00021369,2]
[372557480,1752682278633,-460.0,0.00021369,2]
[372557481,1752682278643,-460.0,0.00021369,2]
[372557482,1752682278653,-460.0,0.00021369,2]
[372557483,1752682278664,-460.0,0.00021369,2]
[372557484,1752682278675,-460.0,0.00021369,2]
[372557485,1752682278684,-460.0,0.00021369,2]
[372557486,1752682278694,-2434.41,0.00021369,2]
[372557487,1752682278704,-838.16,0.00021369,2]
[372557488,1752682278715,-5102.38,0.00021369,2]
[372557489,1752682278725,-602.13,0.00021369,2]
[372557490,1752682278735,-460.0,0.00021369,2]
[372557491,1752682278745,-460.0,0.00021369,2]
[372557492,1752682278755,-460.0,0.00021369,2]
[372557493,1752682278764,-1404.59,0.00021369,2]
[372557494,1752682278775,-478.06820138,0.00021369,2]
[372557495,1752682278787,-460.0,0.00021369,2]
[372557496,1752682278797,-460.0,0.00021369,2]
[372557497,1752682278807,-460.0,0.00021369,2]
[372557498,1752682278817,-499.74,0.00021369,2]
[372557499,1752682278828,-460.0,0.00021369,2]
[372557500,1752682278838,-1737.0,0.00021369,2]
[372557501,1752682278848,-8485.34,0.00021369,2]
[372557502,1752682278858,-460.0,0.00021369,2]
[372557503,1752682278868,-460.0,0.00021369,2]
[372557504,1752682278879,-1068.7,0.00021369,2]
[372557505,1752682278889,-460.0,0.00021369,2]
[372557506,1752682278899,-460.0,0.00021369,2]
[372557507,1752682278909,-1077.39,0.00021369,2]
[372557508,1752682278919,-460.0,0.00021369,2]
[372557509,1752682278929,-461.69,0.00021369,2]
[372557510,1752682278939,-715.65,0.00021369,2]
[372557511,1752682278949,-957.64,0.00021369,2]
[372557512,1752682278959,-342.17872098,0.00021369,2]
[372557513,1752682278969,-460.0,0.00021369,2]
[372557514,1752682278984,-460.0,0.00021369,2]
[372557515,1752682278994,-460.0,0.00021369,2]
[372557516,1752682279004,-460.0,0.00021369,2]
[372557517,1752682279015,-460.0,0.00021369,2]
[372557518,1752682279026,-1115.86,0.00021369,2]
[372557519,1752682279039,-523.69,0.00021369,2]
[372557520,1752682279050,-4066.52,0.00021369,2]
[372557521,1752682279060,-619.31,0.00021369,2]
[372557522,1752682279069,-574.27,0.00021369,2]
[372557523,1752682279080,-460.0,0.00021369,2]
[372557524,1752682279092,-1328.1,0.00021369,2]
[372557525,1752682279102,-918.72,0.00021369,2]
[372557526,1752682279112,-460.0,0.00021369,2]
[372557527,1752682279123,-2299.85,0.00021369,2]
[372557528,1752682279133,-773.05,0.00021369,2]
[372557529,1752682279143,-4580.98,0.00021369,2]
[372557530,1752682279153,-460.0,0.00021369,2]
[372557531,1752682279162,-755.59,0.00021369,2]
[372557532,1752682279173,-913.1,0.00021369,2]
[372557533,1752682279183,-460.0,0.00021369,2]
[372557534,1752682279193,-810.6,0.00021369,2]
[372557535,1752682279203,-985.68,0.00021369,2]
[372557536,1752682279212,-460.0,0.00021369,2]
[372557537,1752682279222,-1927.53,0.00021369,2]
[372557538,1752682279232,-460.0,0.00021369,2]
[372557539,1752682279242,-477.77,0.00021369,2]
[372557540,1752682279251,-2098.91,0.00021369,2]
[372557541,1752682279261,-460.0,0.00021369,2]
[372557542,1752682279272,-850.69,0.00021369,2]
[372557543,1752682279284,-460.0,0.00021369,2]
[372557544,1752682279294,-3246.09,0.00021369,2]
[372557545,1752682279304,-460.0,0.00021369,2]
[372557546,1752682279314,-460.0,0.00021369,2]
[372557547,1752682279324,-496.33,0.00021369,2]
[372557548,1752682279334,-460.0,0.00021369,2]
[372557549,1752682279347,-4054.42,0.00021369,2]
[372557550,1752682279362,-1129.6,0.00021369,2]
[372557551,1752682279372,-586.73547133,0.00021369,2]
[372557552,1752682279382,-460.0,0.00021369,2]
[372557553,1752682279394,-460.0,0.00021369,2]
[372557554,1752682279404,-460.0,0.00021369,2]
[372557555,1752682279414,-207.4,0.0002148,2]
[372557556,1752682279427,-1191.1255437,0.0002148,2]
[372557557,1752682279438,-600.0,0.00021504,2]
[372557558,1752682279447,-3000.0,0.00021512,2]
[372557559,1752682279457,-460.0,0.00021533,2]
[372557560,1752682279467,-7562.15499518,0.00021555,5]
[372557561,1752682279477,-460.0,0.00021643,2]
[372557562,1752682279487,-460.0,0.00021643,2]
[372557563,1752682279496,-460.0,0.00021643,2]
[372557564,1752682279506,-555.83,0.00021643,2]
[372557565,1752682279516,-460.0,0.00021643,2]
[372557566,1752682279526,-460.0,0.00021643,2]
[372557567,1752682279538,-460.0,0.00021643,2]
[372557568,1752682279548,-460.0,0.00021643,2]
[372557569,1752682279559,-774.56,0.00021643,2]
[372557570,1752682279568,-388.67480852,0.00021643,2]
[372557571,1752682279578,-537.73,0.00021643,2]
[372557572,1752682279588,-460.0,0.00021643,2]
[372557573,1752682279598,-460.0,0.00021643,2]
[372557574,1752682279608,-199.89332006,0.00021643,2]
[372557575,1752682279618,-460.0,0.00021643,2]
[372557576,1752682279627,-508.47,0.00021643,2]
[372557577,1752682279637,-460.0,0.00021643,2]
[372557578,1752682279647,-462.87,0.00021643,2]
[372557579,1752682279656,-460.0,0.00021643,2]
[372557580,1752682279666,-258.72,0.00021643,2]
[372557581,1752682279675,-460.0,0.00021643,2]
[372557582,1752682279685,-460.0,0.00021643,2]
[372557583,1752682279695,-460.0,0.00021643,2]
[372557584,1752682279705,-512.75,0.00021643,2]
[372557585,1752682279715,-460.0,0.00021643,2]
[372557586,1752682279725,-800.36,0.00021643,2]
[372557587,1752682279735,-460.0,0.00021643,2]
[372557588,1752682279745,-460.0,0.00021643,2]
[372557589,1752682279755,-460.0,0.00021643,2]
[372557590,1752682279765,-705.11,0.00021643,2]
[372557591,1752682279775,-895.39,0.00021643,2]
[372557592,1752682279786,-460.0,0.00021643,2]
[372557593,1752682279796,-469.31467061,0.00021643,2]
[372557594,1752682279806,-749.62,0.00021643,2]
[372557595,1752682279815,-460.0,0.00021643,2]
[372557596,1752682279826,-460.0,0.00021643,2]
[372557597,1752682279835,-460.0,0.00021643,2]
[372557598,1752682279845,-460.0,0.00021643,2]
[372557599,1752682279855,-264.41773635,0.00021643,2]
[372557600,1752682279864,-1006.97,0.00021643,2]
[372557601,1752682279874,-460.0,0.00021643,2]
[372557602,1752682279883,-582.75,0.00021643,2]
[372557603,1752682279893,-460.0,0.00021643,2]
[372557604,1752682279902,-1201.4,0.00021643,2]
[372557605,1752682279912,-460.0,0.00021643,2]
[372557606,1752682279922,-460.0,0.00021643,2]
[372557607,1752682279931,-1474.43,0.00021643,2]
[372557608,1752682279940,-828.54,0.00021643,2]
[372557609,1752682279948,-460.0,0.00021643,2]
[372557610,1752682279954,-460.0,0.00021643,2]
[372557611,1752682279962,-460.0,0.00021643,2]
[372557612,1752682279969,-507.41,0.00021643,2]
[372557613,1752682279979,-632.11,0.00021643,2]
[372557614,1752682279989,-460.0,0.00021643,2]
[372557615,1752682279999,-460.0,0.00021643,2]
[372557616,1752682280009,-1356.45,0.00021643,2]
[372557617,1752682280019,-460.0,0.00021643,2]
[372557618,1752682280029,-761.93,0.00021643,2]
[372557619,1752682280042,-460.0,0.00021643,2]
[372557620,1752682280052,-460.0,0.00021643,2]
[372557621,1752682280061,-600.35,0.00021643,2]
[372557622,1752682280071,-949.14,0.00021643,2]
[372557623,1752682280080,-624.22,0.00021643,2]
[372557624,1752682280090,-1370.55,0.00021643,2]
[372557625,1752682280099,-1009.28,0.00021643,2]
[372557626,1752682280109,-460.0,0.00021643,2]
[372557627,1752682280119,-664.71,0.00021643,2]
[372557628,1752682280128,-460.0,0.00021643,2]
[372557629,1752682280138,-460.0,0.00021643,2]
[372557630,1752682280147,-569.95,0.00021643,2]
[372557631,1752682280157,-460.0,0.00021643,2]
[372557632,1752682280167,-460.0,0.00021643,2]
[372557633,1752682280176,-460.0,0.00021643,2]
[372557634,1752682280186,-583.30112813,0.00021643,2]
[372557635,1752682280196,-712.27,0.00021643,2]
[372557636,1752682280206,-2013.52,0.00021643,2]
[372557637,1752682280215,-952.9,0.00021643,2]
[372557638,1752682280225,-3683.85,0.00021643,2]
[372557639,1752682280235,-460.0,0.00021643,2]
[372557640,1752682280378,-1497.64,0.00021643,2]
[372557641,1752682280388,-460.0,0.00021643,2]
[372557642,1752682280398,-460.0,0.00021643,2]
[372557643,1752682280408,-619.97,0.00021643,2]
[372557644,1752682280418,-585.24,0.00021643,2]
[372557645,1752682280429,-777.46,0.00021643,2]
[372557646,1752682280439,-460.0,0.00021643,2]
[372557647,1752682280450,-1172.05,0.00021643,2]
[372557648,1752682280460,-1533.49,0.00021643,2]
[372557649,1752682280470,-460.0,0.00021643,2]
[372557650,1752682280481,-9374.46,0.00021643,2]
[372557651,1752682280491,-3198.06,0.00021643,2]
[372557652,1752682280501,-460.0,0.00021643,2]
[372557653,1752682280510,-460.0,0.00021643,2]
[372557654,1752682280521,-512.38,0.00021643,2]
[372557655,1752682280532,-605.37,0.00021643,2]
[372557656,1752682280544,-460.0,0.00021643,2]
[372557657,1752682280554,-534.75039396,0.00021643,2]
[372557658,1752682280564,-460.0,0.00021643,2]
[372557659,1752682280575,-460.0,0.00021643,2]
[372557660,1752682280585,-460.0,0.00021643,2]
[372557661,1752682280595,-2434.41,0.00021643,2]
[372557662,1752682280606,-838.16,0.00021643,2]
[372557663,1752682280616,-5102.38,0.00021643,2]
[372557664,1752682280626,-602.13,0.00021643,2]
[372557665,1752682280636,-460.0,0.00021643,2]
[372557666,1752682280646,-460.0,0.00021643,2]
[372557667,1752682280656,-460.0,0.00021643,2]
[372557668,1752682280666,-1404.59,0.00021643,2]
[372557669,1752682280677,-460.0,0.00021643,2]
[372557670,1752682280687,-460.0,0.00021643,2]
[372557671,1752682280697,-460.0,0.00021643,2]
[372557672,1752682280707,-499.74,0.00021643,2]
[372557673,1752682280717,-460.0,0.00021643,2]
[372557674,1752682280727,-1737.0,0.00021643,2]
[372557675,1752682280737,-8485.34,0.00021643,2]
[372557676,1752682280746,-460.0,0.00021643,2]
[372557677,1752682280755,-460.0,0.00021643,2]
[372557678,1752682280765,-1068.7,0.00021643,2]
[372557679,1752682280775,-460.0,0.00021643,2]
[372557680,1752682280788,-460.0,0.00021643,2]
[372557681,1752682280798,-1077.39,0.00021643,2]
[372557682,1752682280808,-460.0,0.00021643,2]
[372557683,1752682280818,-715.65,0.00021643,2]
[372557684,1752682280828,-957.64,0.00021643,2]
[372557685,1752682280838,-460.0,0.00021643,2]
[372557686,1752682280847,-461.69,0.00021643,2]
[372557687,1752682280857,-460.0,0.00021643,2]
[372557688,1752682280867,-460.0,0.00021643,2]
[372557689,1752682280877,-460.0,0.00021643,2]
[372557690,1752682280887,-460.0,0.00021643,2]
[372557691,1752682280898,-1115.86,0.00021643,2]
[372557692,1752682280908,-523.69,0.00021643,2]
[372557693,1752682280918,-4066.52,0.00021643,2]
[372557694,1752682280928,-619.31,0.00021643,2]
[372557695,1752682280938,-574.27,0.00021643,2]
[372557696,1752682280949,-460.0,0.00021643,2]
[372557697,1752682280959,-1328.1,0.00021643,2]
[372557698,1752682280968,-918.72,0.00021643,2]
[372557699,1752682280979,-460.0,0.00021643,2]
[372557700,1752682280989,-2299.85,0.00021643,2]
[372557701,1752682280999,-773.05,0.00021643,2]
[372557702,1752682281009,-4580.98,0.00021643,2]
[372557703,1752682281019,-560.22,0.00021643,2]
[372557704,1752682281028,-755.59,0.00021643,2]
[372557705,1752682281041,-913.1,0.00021643,2]
[372557706,1752682281051,-460.0,0.00021643,2]
[372557707,1752682281060,-810.6,0.00021643,2]
[372557708,1752682281070,-985.68,0.00021643,2]
[372557709,1752682281080,-460.0,0.00021643,2]
[372557710,1752682281090,-1927.53,0.00021643,2]
[372557711,1752682281100,-460.0,0.00021643,2]
[372557712,1752682281110,-477.77,0.00021643,2]
[372557713,1752682281120,-2098.91,0.00021643,2]
[372557714,1752682281130,-460.0,0.00021643,2]
[372557715,1752682281140,-850.69,0.00021643,2]
[372557716,1752682281150,-460.0,0.00021643,2]
[372557717,1752682281161,-3246.09,0.00021643,2]
[372557718,1752682281171,-460.0,0.00021643,2]
[372557719,1752682281181,-460.0,0.00021643,2]
[372557720,1752682281191,-496.33,0.00021643,2]
[372557721,1752682281201,-460.0,0.00021643,2]
[372557722,1752682281211,-4054.42,0.00021643,2]
[372557723,1752682281221,-1129.6,0.00021643,2]
[372557724,1752682281230,-460.0,0.00021643,2]
[372557725,1752682281240,-460.0,0.00021643,2]
[372557726,1752682281250,-460.0,0.00021643,2]
[372557727,1752682281260,-2041.21077237,0.00021664,2]
[372557728,1752682281270,-874.61804698,0.00021664,2]
[372557729,1752682281280,-2500.0,0.00021664,2]
[372557730,1752682281293,-2500.0,0.00021664,2]
[372557731,1752682281303,-303.5,0.00021754,4]
[372557732,1752682281314,-160.0,0.00021792,4]
[372557733,1752682281324,-7562.15499518,0.00021797,6]
[372557734,1752682281334,-3000.0,0.000219,2]
[372557735,1752682281345,-3000.0,0.0002191,2]
[372557736,1752682281358,-460.0,0.00021917,2]
[372557737,1752682281368,-460.0,0.00021917,2]
[372557738,1752682281378,-555.83,0.00021917,2]
[372557739,1752682281388,-460.0,0.00021917,2]
[372557740,1752682281399,-460.0,0.00021917,2]
[372557741,1752682281408,-460.0,0.00021917,2]
[372557742,1752682281418,-774.56,0.00021917,2]
[372557743,1752682281429,-537.73,0.00021917,2]
[372557744,1752682281439,-460.0,0.00021917,2]
[372557745,1752682281448,-500.0,0.00021917,2]
[372557746,1752682281457,-500.0,0.00021917,2]